bitfinex/quotes_SOLUSD_20251124
["timestamp","ask_amount","ask_price","bid_price","bid_amount"]
[1763982715750,20.88867479,129.12,129.11,28.0602071]
[1763982720183,18.12096,129.12,129.11,28.0602071]
[1763982720355,20.88867479,129.12,129.11,28.0602071]
[1763982723203,18.12096,129.12,129.11,28.0602071]
[1763982723366,32.10169552,129.12,129.11,28.0602071]
[1763982723565,32.10169552,129.12,129.07,31.4802071]
[1763982723776,2.76771479,129.09,129.07,31.4802071]
[1763982723964,2.76771479,129.1,129.07,31.4802071]
[1763982724160,4.0513863,129.09,129.07,31.4802071]
[1763982727094,0.14803433,129.08,129.07,31.4802071]
[1763982729201,0.14803433,129.08,129.07,35.81213365]
[1763982729381,0.13992683,129.09,129.08,27.91217277]
[1763982729696,0.13992683,129.09,129.08,32.24409932]
[1763982731700,0.13992683,129.09,129.08,27.91217277]
[1763982731874,0.13992683,129.09,129.08,32.24409932]
[1763982732792,0.13992683,129.09,129.08,35.34956882]
[1763982735310,0.1638597,129.1,129.09,27.67224594]
[1763982735609,0.1638597,129.1,129.09,31.09224594]
[1763982737404,0.1638597,129.1,129.09,35.29606643]
[1763982738105,0.1638597,129.1,129.09,31.09224594]
[1763982739286,0.1638597,129.1,129.09,27.67224594]
[1763982739690,0.1638597,129.1,129.06,14.12075424]
[1763982739691,22.61674625,129.1,129.07,4.20382049]
[1763982739912,4.33192655,129.09,129.07,3.42]
[1763982741807,18.12096,129.09,129.07,3.42]
[1763982742905,4.33192655,129.09,129.07,3.42]
[1763982743305,18.12096,129.09,129.07,3.42]
[1763982743708,22.45288655,129.09,129.07,3.42]
[1763982744130,4.33192655,129.09,129.07,30.99224594]
[1763982744310,4.33192655,129.08,129.07,30.99224594]
[1763982745029,4.33192655,129.09,129.07,30.99224594]
[1763982745237,0.1638597,129.1,129.07,30.99224594]
[1763982745430,4.33192655,129.09,129.07,30.99224594]
[1763982746136,4.33192655,129.09,129.07,27.57224594]
[1763982746311,4.33192655,129.09,129.07,30.99224594]
[1763982747026,0.16582273,129.08,129.07,30.99224594]
[1763982753156,22.61870928,129.08,129.07,27.57224594]
[1763982753356,18.28678273,129.08,129.07,30.99224594]
[1763982758255,0.16582273,129.08,129.07,30.99224594]
[1763982759753,4.21720454,129.08,129.07,30.99224594]
[1763982767066,22.49081672,129.08,129.07,30.99224594]
[1763982767971,22.32499399,129.08,129.07,30.99224594]
[1763982768295,4.20403399,129.08,129.07,30.99224594]
[1763982769870,4.20403399,129.08,129.07,35.32417249]
[1763982772462,4.20403399,129.08,129.07,35.19627993]
[1763982772954,4.20403399,129.08,129.07,30.99224594]
[1763982773953,0.15005035,129.09,129.08,23.36821195]
[1763982774153,18.27101035,129.09,129.08,23.36821195]
[1763982779383,0.15005035,129.09,129.08,23.36821195]
[1763982779980,0.15005035,129.09,129.08,20.06821195]
[1763982781968,0.15005035,129.09,129.08,24.4001385]
[1763982782178,0.15005035,129.09,129.08,140.68178352]
[1763982783196,0.15005035,129.09,129.08,136.34985697]
[1763982783377,0.15005035,129.09,129.08,140.68178352]
[1763982785894,0.16431152,129.1,129.09,29.70698929]
[1763982786082,0.16431152,129.1,129.09,37.45891584]
[1763982786586,0.16431152,129.1,129.09,40.56390322]
[1763982786986,0.31353656,129.1,129.09,40.56390322]
[1763982787994,0.14922504,129.1,129.09,40.56390322]
[1763982788707,0.14922504,129.1,129.09,39.00219482]
[1763982791878,0.16896475,129.11,129.1,19.56893656]
[1763982792189,0.16896475,129.11,129.1,121.46893656]
[1763982792590,0.16896475,129.11,129.1,124.57392394]
[1763982794608,0.16896475,129.11,129.1,137.13296978]
[1763982795904,0.16896475,129.11,129.1,137.27513135]
[1763982797708,0.16896475,129.11,129.1,145.02106473]
[1763982799610,0.16896475,129.11,129.1,137.27513135]
[1763982800591,0.15314558,129.13,129.12,19.13917351]
[1763982800794,0.15314558,129.13,129.12,32.3480012]
[1763982801007,0.15314558,129.13,129.12,134.0480012]
[1763982801201,0.15314558,129.13,129.12,137.15226568]
[1763982805701,0.15314558,129.13,129.12,123.94343799]
[1763982805901,0.15314558,129.13,129.12,127.36343799]
[1763982806608,0.15314558,129.13,129.12,25.36343799]
[1763982806990,0.30011878,129.13,129.12,25.36343799]
[1763982808016,0.1469732,129.13,129.12,25.36343799]
[1763982809722,0.1469732,129.13,129.12,21.94343799]
[1763982809931,0.1469732,129.13,129.12,25.36343799]
[1763982812222,0.1469732,129.13,129.12,37.92248383]
[1763982812524,0.16438096,129.14,129.13,18.69220031]
[1763982812698,0.16438096,129.14,129.13,120.59220031]
[1763982813298,0.16438096,129.14,129.13,123.69646479]
[1763982814425,0.16438096,129.14,129.13,126.46668294]
[1763982814731,0.16438096,129.14,129.13,136.25551063]
[1763982815226,0.14070827,129.17,129.16,18.1369592]
[1763982815401,0.14070827,129.17,129.16,123.2569592]
[1763982815898,0.14070827,129.17,129.16,126.36050111]
[1763982818118,0.14070827,129.17,129.16,132.15411479]
[1763982818317,2.91092642,129.17,129.16,132.15411479]
[1763982818526,2.91092642,129.17,129.16,24.36050111]
[1763982822041,0.14070827,129.17,129.16,24.36050111]
[1763982822238,0.14070827,129.17,129.16,19.08258775]
[1763982822411,0.1588169,129.19,129.18,1.99999999]
[1763982822612,0.16764226,129.21,129.19,9.78882769]
[1763982822819,0.16764226,129.21,129.2,39.89279355]
[1763982823442,0.16764226,129.21,129.2,40.22419211]
[1763982823648,0.16764226,129.21,129.2,37.20162255]
[1763982827140,0.32717928,129.21,129.2,37.20162255]
[1763982828032,0.15953702,129.21,129.2,37.20162255]
[1763982829028,0.15953702,129.21,129.2,45.0837222]
[1763982829843,18.38613698,129.3,129.25,16.87709108]
[1763982830054,0.25524217,129.29,129.25,15.97904584]
[1763982830430,0.25524217,129.29,129.25,19.08018163]
[1763982831522,0.25524217,129.29,129.25,37.20114163]
[1763982832221,3.02546032,129.29,129.25,34.43092348]
[1763982833437,0.25524217,129.29,129.25,34.43092348]
[1763982834651,3.02546032,129.29,129.25,34.43092348]
[1763982835143,3.01742271,129.28,129.25,34.43092348]
[1763982835636,0.24720456,129.28,129.25,34.43092348]
[1763982836247,0.24720456,129.28,129.26,15.93240155]
[1763982837053,0.24720456,129.28,129.26,22.45353734]
[1763982837625,0.24720456,129.28,129.26,19.03353734]
[1763982837828,0.24720456,129.28,129.26,22.45353734]
[1763982842152,0.24720456,129.28,129.26,124.35353734]
[1763982844655,0.24720456,129.28,129.26,136.91258318]
[1763982848274,0.1,129.28,129.27,15.73240155]
[1763982848461,0.1,129.28,129.27,18.5026197]
[1763982848664,0.1,129.28,129.27,20.04925707]
[1763982848964,0.1,129.28,129.27,131.83808476]
[1763982850762,0.1,129.28,129.27,134.93873977]
[1763982854267,0.1,129.29,129.28,18.12096]
[1763982854465,0.1,129.29,129.28,51.07904476]
[1763982854871,0.1,129.29,129.28,54.17945944]
[1763982855977,0.1,129.29,129.28,36.05849944]
[1763982857666,0.1,129.29,129.28,54.17945944]
[1763982859150,0.1,129.29,129.28,36.05849944]
[1763982859852,0.1,129.29,129.28,21.95281623]
[1763982860066,0.1,129.29,129.28,123.95281623]
[1763982865798,4.31685552,129.31,129.28,123.95281623]
[1763982867293,0.14513362,129.29,129.28,123.95281623]
[1763982869990,4.46198914,129.29,129.27,3.42]
[1763982870188,4.31685552,129.28,129.27,3.42]
[1763982870680,22.43781552,129.28,129.27,3.42]
[1763982872390,4.31685552,129.28,129.27,3.42]
[1763982872590,4.46198914,129.29,129.27,3.42]
[1763982873688,4.31685552,129.28,129.27,3.42]
[1763982876382,4.31685552,129.28,129.26,3.42]
[1763982876712,4.31685552,129.27,129.26,3.42]
[1763982877803,4.31685552,129.27,129.25,3.42]
[1763982877978,4.31685552,129.26,129.25,18.85240155]
[1763982885714,22.43781552,129.26,129.25,18.85240155]
[1763982886911,4.31685552,129.26,129.25,18.85240155]
[1763982887119,4.48183587,129.26,129.25,18.85240155]
[1763982888324,0.16498035,129.26,129.25,18.85240155]
[1763982888521,0.16498035,129.26,129.25,37.14281846]
[1763982889107,4.48183587,129.26,129.25,37.14281846]
[1763982893232,0.16498035,129.26,129.25,46.93164615]
[1763982893407,0.16498035,129.26,129.25,51.24850167]
[1763982894708,0.16498035,129.26,129.25,46.93164615]
[1763982895624,0.16084006,129.27,129.26,15.2674212]
[1763982896418,0.16084006,129.27,129.26,19.75373363]
[1763982897306,4.47769558,129.27,129.26,19.75373363]
[1763982898213,4.47769558,129.27,129.26,15.2674212]
[1763982901622,4.47769558,129.27,129.26,15.1674212]
[1763982902130,22.59865558,129.27,129.26,15.1674212]
[1763982902338,22.59865558,129.27,129.25,15.1674212]
[1763982902544,4.31685552,129.26,129.25,15.1674212]
[1763982903345,4.47769558,129.27,129.25,33.44922126]
[1763982903728,4.47769558,129.27,129.25,15.1674212]
[1763982903928,4.47769558,129.27,129.26,18.29041691]
[1763982907153,22.738184,129.27,129.26,18.29041691]
[1763982907466,22.738184,129.27,129.26,33.45783811]
[1763982908143,22.57734394,129.27,129.26,33.45783811]
[1763982908344,0.13952842,129.27,129.26,33.45783811]
[1763982919048,0.13952842,129.27,129.26,36.22170968]
[1763982919373,0.13952842,129.27,129.26,138.22170968]
[1763982920869,0.13952842,129.27,129.26,135.45783811]
[1763982921056,0.13952842,129.27,129.26,138.22170968]
[1763982921667,0.13952842,129.27,129.26,135.45783811]
[1763982923573,2.90339999,129.27,129.26,135.45783811]
[1763982923752,2.90339999,129.27,129.26,117.1674212]
[1763982923961,2.90339999,129.27,129.26,120.26903791]
[1763982924151,2.90339999,129.27,129.26,117.1674212]
[1763982924660,0.13952842,129.27,129.26,117.1674212]
[1763982925270,0.13952842,129.27,129.26,15.1674212]
[1763982927081,0.28605758,129.27,129.26,19.36752954]
[1763982928078,0.14652916,129.27,129.26,19.36752954]
[1763982929274,2.91040073,129.27,129.26,19.36752954]
[1763982930178,0.14652916,129.27,129.26,19.36752954]
[1763982931279,0.14652916,129.27,129.26,121.36752954]
[1763982938391,0.16212482,129.28,129.27,15.02089204]
[1763982938568,0.16212482,129.28,129.27,18.44089204]
[1763982939092,0.16212482,129.28,129.27,21.54178742]
[1763982939594,0.16212482,129.28,129.27,123.44178742]
[1763982940384,0.16212482,129.28,129.27,133.23061511]
[1763982940700,0.16212482,129.28,129.27,135.99448668]
[1763982945204,0.16212482,129.28,129.27,133.23061511]
[1763982947101,0.3155384,129.28,129.27,133.23061511]
[1763982948005,0.15341358,129.28,129.27,133.23061511]
[1763982949003,0.16685203,129.29,129.28,14.76747846]
[1763982949214,0.16685203,129.29,129.28,116.66747846]
[1763982949714,0.16685203,129.29,129.28,119.76813347]
[1763982954337,2.9307236,129.29,129.28,119.76813347]
[1763982954536,2.9307236,129.29,129.28,116.66747846]
[1763982955212,2.9307236,129.29,129.28,14.66747846]
[1763982956545,2.9307236,129.29,129.27,18.08747846]
[1763982956715,2.76387157,129.28,129.22,14.66747846]
[1763982956918,2.76387157,129.23,129.16,7.74233508]
[1763982957135,2.76387157,129.22,129.21,11.21233104]
[1763982957311,2.76387157,129.22,129.21,3.42]
[1763982958645,2.76387157,129.23,129.21,3.42]
[1763982960546,2.76387157,129.22,129.21,3.42]
[1763982961723,2.76387157,129.22,129.18,11.21233104]
[1763982961926,2.76387157,129.21,129.19,3.42]
[1763982962251,2.76387157,129.22,129.19,3.42]
[1763982962454,18.12096,129.26,129.19,6.18387157]
[1763982962627,2.76387157,129.24,129.19,20.85135003]
[1763982963637,2.76387157,129.23,129.19,20.85135003]
[1763982964338,2.76387157,129.22,129.19,18.08747846]
[1763982964540,2.76387157,129.2,129.19,14.66747846]
[1763982964748,2.76387157,129.2,129.16,14.66747846]
[1763982964938,2.76387157,129.17,129.15,3.42]
[1763982965142,2.76387157,129.16,129.15,3.42]
[1763982967136,2.91099092,129.16,129.15,3.42]
[1763982967533,2.91099092,129.16,129.13,21.74096]
[1763982967736,2.76387157,129.15,129.13,21.74096]
[1763982970759,4.32770659,129.15,129.13,21.74096]
[1763982971330,0.14711935,129.16,129.13,21.74096]
[1763982971331,4.47482594,129.16,129.13,21.74096]
[1763982971532,0.14711935,129.16,129.14,4.32770659]
[1763982971737,0.14711935,129.16,129.15,4.32770659]
[1763982971936,0.14711935,129.16,129.15,14.11653428]
[1763982975210,0.14711935,129.16,129.15,17.53653428]
[1763982975910,0.14711935,129.16,129.15,35.30731387]
[1763982976780,0.14711935,129.16,129.15,137.44947544]
[1763982981791,0.16068692,129.18,129.15,137.44947544]
[1763982981792,0.16794793,129.19,129.18,14.21034547]
[1763982981978,0.16794793,129.19,129.18,17.23034547]
[1763982982390,0.16794793,129.19,129.18,21.72694801]
[1763982982994,0.16794793,129.19,129.18,26.0546546]
[1763982986392,0.16794793,129.19,129.18,35.84348229]
[1763982987197,0.32281147,129.19,129.18,35.84348229]
[1763982987406,0.33659494,129.21,129.2,22.95450255]
[1763982987596,0.33659494,129.21,129.2,30.70220914]
[1763982988100,0.16769899,129.21,129.2,33.80430693]
[1763982988396,0.16769899,129.21,129.2,135.80430693]
[1763982993590,0.15844928,129.23,129.22,12.33096056]
[1763982993794,0.15844928,129.23,129.22,15.45096056]
[1763982994185,0.15844928,129.23,129.22,19.92667132]
[1763982996499,0.15844928,129.23,129.22,24.25437791]
[1763982998492,0.15844928,129.23,129.22,19.92667132]
[1763983000113,0.15844928,129.23,129.22,24.25437791]
[1763983000311,0.15844928,129.23,129.22,19.92667132]
[1763983000616,0.15844928,129.23,129.22,34.0432056]
[1763983002319,0.16415018,129.24,129.23,9.78882769]
[1763983002500,0.16415018,129.24,129.23,25.88904556]
[1763983003718,0.16415018,129.24,129.23,49.19904556]
[1763983003900,0.16415018,129.24,129.23,25.88904556]
[1763983005925,0.16415018,129.24,129.23,33.62718685]
[1763983006400,0.16415018,129.24,129.23,25.88904556]
[1763983006604,0.16415018,129.24,129.23,33.62718685]
[1763983007001,0.16415018,129.24,129.23,135.76934842]
[1763983007322,0.31710965,129.25,129.24,11.91467285]
[1763983007514,0.31710965,129.25,129.24,23.99008603]
[1763983007724,0.31710965,129.25,129.24,19.66237944]
[1763983008107,0.16910548,129.25,129.24,27.39992199]
[1763983009804,0.16910548,129.25,129.24,30.50081737]
[1763983010431,0.16910548,129.25,129.24,40.28964506]
[1763983010626,0.16910548,129.25,129.24,44.61735165]
[1763983011305,0.15747225,129.26,129.25,9.93098926]
[1763983011510,0.1669935,129.28,129.27,44.70584446]
[1763983011705,0.25852494,129.32,129.28,33.24098926]
[1763983011916,0.25852494,129.32,129.3,9.78882769]
[1763983012208,0.25852494,129.32,129.3,131.60909607]
[1763983012410,0.25852494,129.32,129.3,142.44226168]
[1763983013332,0.25852494,129.32,129.3,133.94276462]
[1763983014724,0.25852494,129.32,129.3,141.67671666]
[1763983015232,0.25852494,129.32,129.3,146.00442325]
[1763983016345,0.25852494,129.32,129.3,141.67671666]
[1763983017340,4.32770659,129.36,129.34,10.58020065]
[1763983017543,4.32770659,129.36,129.35,3.42]
[1763983017841,0.1,129.37,129.35,3.42]
[1763983018011,4.42770659,129.37,129.35,7.74770659]
[1763983018432,4.42770659,129.37,129.35,3.42]
[1763983018717,4.42770659,129.37,129.36,10.18020065]
[1763983019122,18.12096,129.35,129.3,19.96902834]
[1763983019330,4.32770659,129.34,129.31,3.42]
[1763983019523,4.32770659,129.34,129.32,10.18020065]
[1763983019736,22.44866659,129.33,129.31,3.42]
[1763983020038,18.12096,129.33,129.31,3.42]
[1763983020223,4.32770659,129.32,129.31,3.42]
[1763983020616,4.32770659,129.32,129.29,17.53653428]
[1763983020814,4.32770659,129.31,129.29,17.53653428]
[1763983021136,26.77637318,129.3,129.25,10.18020065]
[1763983021442,22.44866659,129.3,129.25,21.54096]
[1763983021621,4.32770659,129.3,129.25,3.42]
[1763983021826,4.32770659,129.27,129.25,3.42]
[1763983022223,4.32770659,129.26,129.25,3.42]
[1763983022443,4.32770659,129.27,129.25,3.42]
[1763983025843,4.32770659,129.26,129.23,3.42]
[1763983027225,0.16947093,129.24,129.23,3.42]
[1763983027627,4.49717752,129.24,129.2,10.18020065]
[1763983027826,4.32770659,129.23,129.2,13.60020065]
[1763983028162,4.32770659,129.23,129.21,4.47587977]
[1763983029022,4.32770659,129.22,129.2,3.42]
[1763983029223,4.32770659,129.21,129.2,3.42]
[1763983030046,4.32770659,129.21,129.18,21.54096]
[1763983031539,4.32770659,129.21,129.18,3.42]
[1763983032037,4.32770659,129.21,129.19,18.12096]
[1763983032656,2.76719443,129.21,129.18,3.42]
[1763983032940,2.76719443,129.21,129.18,21.54096]
[1763983033765,2.76719443,129.21,129.18,3.42]
[1763983033966,2.76719443,129.21,129.18,21.54096]
[1763983034136,20.88815443,129.22,129.18,21.54096]
[1763983034341,18.12096,129.22,129.18,21.54096]
[1763983034541,20.88815443,129.22,129.18,21.54096]
[1763983035044,20.88815443,129.22,129.18,3.42]
[1763983035272,2.76719443,129.22,129.18,13.60020065]
[1763983035575,2.76719443,129.22,129.19,20.88815443]
[1763983035746,18.29043093,129.24,129.19,20.88815443]
[1763983035948,2.93666536,129.24,129.2,2.76719443]
[1763983036569,2.93666536,129.24,129.21,3.10281968]
[1763983037271,2.76719443,129.23,129.21,3.10281968]
[1763983037865,0.16947093,129.24,129.22,18.12096]
[1763983038057,2.93666536,129.24,129.22,28.30116065]
[1763983039179,2.76719443,129.23,129.22,28.30116065]
[1763983039771,0.16947093,129.24,129.22,28.30116065]
[1763983039977,2.93666536,129.24,129.22,10.18020065]
[1763983040183,2.93666536,129.24,129.22,13.28277966]
[1763983042078,2.76719443,129.23,129.22,10.18020065]
[1763983047182,2.90676048,129.23,129.22,10.18020065]
[1763983053494,21.02772048,129.23,129.22,10.18020065]
[1763983054868,2.90676048,129.23,129.22,10.18020065]
[1763983055198,0.13956605,129.23,129.22,10.18020065]
[1763983055579,0.13956605,129.23,129.22,20.3604013]
[1763983057524,0.13956605,129.23,129.22,26.54759573]
[1763983057723,0.13956605,129.23,129.22,36.33642342]
[1763983062321,0.13942328,129.24,129.23,19.82946229]
[1763983062513,0.13942328,129.24,129.23,22.59665672]
[1763983064700,0.13942328,129.24,129.23,22.73881829]
[1763983065008,0.13942328,129.24,129.23,30.47695958]
[1763983065423,0.13942328,129.24,129.23,59.6666973]
[1763983065612,0.14482974,129.25,129.24,33.22098926]
[1763983065814,0.14482974,129.25,129.24,47.05696141]
[1763983066128,0.14816787,129.26,129.24,47.05696141]
[1763983066316,0.14816787,129.26,129.25,23.71296602]
[1763983066515,0.14816787,129.26,129.25,135.55360062]
[1763983066817,0.14816787,129.26,129.25,138.6540153]
[1763983067236,0.29860989,129.26,129.25,138.6540153]
[1763983068031,0.15044202,129.26,129.25,131.05923297]
[1763983069318,0.15044202,129.26,129.25,128.14987697]
[1763983069628,0.15044202,129.26,129.25,130.9170714]
[1763983070931,0.16428734,129.27,129.26,9.69019258]
[1763983071713,0.16428734,129.27,129.26,12.79132837]
[1763983072319,0.16428734,129.27,129.26,15.5585228]
[1763983074138,0.16428734,129.27,129.26,25.34735049]
[1763983076441,0.16428734,129.27,129.26,22.58015606]
[1763983076756,2.93548092,129.28,129.26,3.10113579]
[1763983076907,2.76719443,129.27,129.22,12.74590524]
[1763983077108,2.76719443,129.25,129.23,3.10209779]
[1763983077506,18.12096,129.27,129.23,3.10209779]
[1763983077507,2.76719443,129.26,129.23,3.10209779]
[1763983077740,2.76719443,129.25,129.23,3.10209779]
[1763983079441,2.76719443,129.26,129.23,3.10209779]
[1763983080710,0.16828649,129.28,129.24,2.76719443]
[1763983080912,0.16828649,129.28,129.25,6.18719443]
[1763983081739,0.16828649,129.28,129.26,3.10113579]
[1763983082434,0.16828649,129.28,129.26,12.42704103]
[1763983084419,0.16828649,129.28,129.27,12.55602212]
[1763983084639,0.16828649,129.28,129.27,21.88192736]
[1763983085122,0.16828649,129.28,129.27,19.11473293]
[1763983085322,0.16828649,129.28,129.27,21.88192736]
[1763983087143,0.3085594,129.28,129.27,21.88192736]
[1763983087918,0.3085594,129.28,129.27,24.98258237]
[1763983088119,0.14027291,129.28,129.27,24.98258237]
[1763983088739,0.14027291,129.28,129.27,126.98258237]
[1763983089144,0.14748781,129.29,129.28,9.18563233]
[1763983089323,0.14748781,129.29,129.28,127.30381602]
[1763983090528,0.14748781,129.29,129.28,135.03896453]
[1763983091122,0.14748781,129.29,129.28,127.30381602]
[1763983091534,0.14748781,129.29,129.28,135.03896453]
[1763983091740,0.14748781,129.29,129.28,127.30381602]
[1763983094145,0.14748781,129.29,129.28,124.39446002]
[1763983094328,0.14748781,129.29,129.28,127.16165445]
[1763983094527,0.14372089,129.3,129.29,18.72697221]
[1763983094728,0.14372089,129.3,129.29,8.83814452]
[1763983095353,0.14372089,129.3,129.29,13.30260911]
[1763983095945,4.46001314,129.3,129.29,13.30260911]
[1763983096689,0.14372089,129.3,129.29,13.30260911]
[1763983097365,4.46001314,129.3,129.29,8.83814452]
[1763983098682,0.14372089,129.3,129.29,8.83814452]
[1763983101682,0.14372089,129.3,129.29,13.30260911]
[1763983104269,0.14372089,129.3,129.29,27.40772905]
[1763983105379,0.14372089,129.3,129.29,35.28444085]
[1763983106339,0.14372089,129.3,129.29,27.54989062]
[1763983107177,0.30041129,129.3,129.29,53.40540085]
[1763983107394,0.30041129,129.3,129.29,45.67085062]
[1763983107985,0.1566904,129.3,129.29,45.67085062]
[1763983109380,0.1566904,129.3,129.29,23.0914368]
[1763983109786,2.64894092,129.32,129.29,23.0914368]
[1763983110003,2.64894092,129.32,129.3,3.42]
[1763983110507,4.31629225,129.31,129.3,8.83814452]
[1763983110704,4.31629225,129.31,129.26,106.31629225]
[1763983110705,22.43725225,129.31,129.25,18.62697221]
[1763983110883,4.31629225,129.29,129.27,3.10113579]
[1763983115283,4.31629225,129.29,129.26,3.42]
[1763983115505,4.31629225,129.29,129.26,21.54096]
[1763983116303,4.31629225,129.29,129.26,3.42]
[1763983116518,4.31629225,129.29,129.27,18.12096]
[1763983117395,4.31629225,129.31,129.27,22.43725225]
[1763983117581,4.31629225,129.31,129.28,3.42]
[1763983117783,4.31629225,129.32,129.28,16.57443677]
[1763983118292,4.31629225,129.32,129.29,18.26527053]
[1763983119015,22.58156278,129.33,129.29,18.26527053]
[1763983120111,22.58156278,129.33,129.3,3.42]
[1763983121328,22.58156278,129.33,129.3,12.25814452]
[1763983121904,4.31629225,129.31,129.3,8.83814452]
[1763983123898,4.31629225,129.31,129.28,3.42]
[1763983123899,22.43725225,129.31,129.28,3.42]
[1763983124100,4.31629225,129.29,129.28,3.42]
[1763983125021,4.31629225,129.29,129.26,27.10341505]
[1763983125225,4.31629225,129.28,129.26,12.25814452]
[1763983126004,4.31629225,129.27,129.26,12.25814452]
[1763983126618,4.31629225,129.27,129.26,8.83814452]
[1763983126924,4.31629225,129.27,129.24,12.25814452]
[1763983127227,4.45877509,129.27,129.24,12.25814452]
[1763983127624,4.31629225,129.25,129.24,3.42]
[1763983128123,4.31629225,129.25,129.23,8.83814452]
[1763983128297,18.26344284,129.27,129.23,8.83814452]
[1763983128298,4.31629225,129.26,129.23,8.83814452]
[1763983130332,4.45877509,129.27,129.23,13.15443677]
[1763983132830,0.14248284,129.27,129.26,4.31629225]
[1763983133131,0.14248284,129.27,129.26,3.42]
[1763983133507,0.14248284,129.27,129.26,6.52113579]
[1763983135331,0.14248284,129.27,129.26,3.42]
[1763983136130,0.14248284,129.27,129.26,23.92]
[1763983138747,4.45877509,129.27,129.26,23.92]
[1763983139033,4.45877509,129.27,129.26,20.5]
[1763983140233,0.14248284,129.27,129.26,20.5]
[1763983140607,22.57973509,129.27,129.26,20.5]
[1763983141107,4.45877509,129.27,129.26,20.5]
[1763983141305,4.45877509,129.27,129.24,20.5]
[1763983141610,4.45877509,129.27,129.2,102.0]
[1763983141611,18.12096,129.24,129.2,3.42]
[1763983141825,4.31629225,129.22,129.2,7.87877509]
[1763983142132,18.12096,129.24,129.14,102.2]
[1763983142133,18.12096,129.2,129.14,0.2]
[1763983142333,4.31629225,129.17,129.15,18.12096]
[1763983142505,4.31629225,129.18,129.15,18.12096]
[1763983142703,4.31629225,129.19,129.15,18.12096]
[1763983143318,4.31629225,129.18,129.15,18.12096]
[1763983143710,4.31629225,129.19,129.15,18.12096]
[1763983143911,4.31629225,129.18,129.15,18.12096]
[1763983144216,4.31629225,129.19,129.15,4.31629225]
[1763983144413,4.31629225,129.2,129.16,4.31629225]
[1763983144612,22.43725225,129.22,129.18,4.31629225]
[1763983145613,18.12096,129.22,129.18,4.31629225]
[1763983145824,4.31629225,129.24,129.19,4.31629225]
[1763983146022,4.31629225,129.25,129.2,7.73629225]
[1763983146223,22.43725225,129.25,129.2,7.73629225]
[1763983146424,4.45877509,129.27,129.22,4.31629225]
[1763983146736,22.57973509,129.27,129.23,3.42]
[1763983147046,4.31629225,129.25,129.23,3.42]
[1763983147207,0.15334174,129.24,129.23,3.42]
[1763983150113,4.19962484,129.24,129.23,3.42]
[1763983152329,4.19962484,129.24,129.23,23.92]
[1763983154613,4.19962484,129.24,129.23,28.23629225]
[1763983154943,0.15334174,129.24,129.23,28.23629225]
[1763983155912,0.15334174,129.24,129.23,23.92]
[1763983156632,2.91888192,129.24,129.23,23.92]
[1763983156833,2.91888192,129.24,129.21,3.42]
[1763983157736,0.15334174,129.24,129.21,3.42]
[1763983157941,2.91888192,129.24,129.21,3.42]
[1763983158317,2.91888192,129.24,129.21,23.92]
[1763983158318,2.76554018,129.23,129.21,23.92]
[1763983159348,2.76554018,129.23,129.21,20.5]
[1763983159349,2.76554018,129.22,129.21,20.5]
[1763983160631,2.76554018,129.22,129.19,3.42]
[1763983160848,2.76554018,129.21,129.19,23.92]
[1763983162846,2.76554018,129.22,129.19,23.92]
[1763983163061,18.12096,129.23,129.15,38.62096]
[1763983163062,2.76554018,129.2,129.15,38.62096]
[1763983163235,2.76554018,129.18,129.16,3.42]
[1763983163440,2.76554018,129.19,129.16,3.42]
[1763983164263,18.12096,129.2,129.16,3.42]
[1763983164264,20.88650018,129.2,129.16,3.42]
[1763983165654,2.76554018,129.2,129.16,3.42]
[1763983167154,0.15749503,129.17,129.16,3.42]
[1763983167456,0.15749503,129.17,129.16,6.18554018]
[1763983170954,0.15749503,129.17,129.16,15.97436787]
[1763983171154,0.15749503,129.17,129.16,9.28860057]
[1763983171796,0.15749503,129.17,129.16,131.78860057]
[1763983172794,0.14792879,129.21,129.16,121.38159878]
[1763983173092,0.14792879,129.21,129.2,35.98652944]
[1763983173298,0.14792879,129.21,129.2,39.40652944]
[1763983173803,0.14792879,129.21,129.2,42.50790567]
[1763983175155,0.14792879,129.21,129.2,50.24784375]
[1763983176075,0.14792879,129.21,129.2,42.50790567]
[1763983176258,0.14792879,129.21,129.2,19.21790567]
[1763983179372,0.14792879,129.21,129.2,26.95784375]
[1763983180700,0.16041309,129.25,129.23,29.83535716]
[1763983180868,0.16041309,129.25,129.23,137.62089734]
[1763983181284,0.16041309,129.25,129.23,140.72251405]
[1763983182792,0.16041309,129.25,129.23,19.07598458]
[1763983187216,0.31073958,129.24,129.23,19.07598458]
[1763983188101,0.146893,129.24,129.23,19.07598458]
[1763983192233,0.15087622,129.26,129.25,9.78882769]
[1763983192391,0.15087622,129.26,129.25,16.11652944]
[1763983192806,0.15087622,129.26,129.25,19.21718445]
[1763983195203,0.15087622,129.26,129.25,26.95412835]